bitfinex/quotes_BTCUSD_20241117
["timestamp","ask_amount","ask_price","bid_price","bid_amount"]
[1731883051420,0.05493774,89535.0,89532.0,0.225383]
[1731883051421,0.05493774,89535.0,89532.0,0.113691]
[1731883051640,0.04812646,89534.0,89532.0,0.113691]
[1731883051845,0.00681128,89535.0,89532.0,0.001]
[1731883051846,0.15981646,89533.0,89532.0,0.001]
[1731883052067,0.05494347,89533.0,89528.0,0.111696]
[1731883052304,0.05494347,89533.0,89524.0,0.223401]
[1731883052305,0.04812646,89532.0,89525.0,0.1117]
[1731883052520,0.05494002,89531.0,89527.0,0.111697]
[1731883052722,0.04812646,89530.0,89525.0,0.2234]
[1731883052934,0.05493656,89529.0,89526.0,0.228398]
[1731883053141,0.006,89533.0,89530.0,0.111693]
[1731883053341,0.0549629,89532.0,89530.0,0.111693]
[1731883053543,0.04814762,89531.0,89530.0,0.111693]
[1731883053742,0.05496118,89531.0,89530.0,0.111693]
[1731883056062,0.05996118,89531.0,89530.0,0.112693]
[1731883056267,0.05996118,89531.0,89530.0,0.002]
[1731883058160,0.1045187,89531.0,89530.0,0.002]
[1731883058372,0.0877717,89531.0,89530.0,0.002]
[1731883058571,0.1994647,89531.0,89530.0,0.002]
[1731883058746,0.19944964,89531.0,89530.0,0.002]
[1731883059965,0.19944964,89531.0,89530.0,0.001]
[1731883060166,0.1117,89525.0,89520.0,0.111706]
[1731883060373,0.03813542,89524.0,89520.0,0.111706]
[1731883060574,0.01046687,89523.0,89520.0,0.111706]
[1731883060795,0.03138031,89522.0,89520.0,0.111706]
[1731883061006,0.111699,89526.0,89520.0,0.111706]
[1731883061007,0.03138031,89521.0,89520.0,0.111706]
[1731883061423,0.03812499,89521.0,89520.0,0.111706]
[1731883062030,0.03812499,89521.0,89518.0,0.111708]
[1731883062257,0.02091344,89520.0,89519.0,0.111707]
[1731883062446,0.03138031,89520.0,89519.0,0.111707]
[1731883062686,0.02770104,89520.0,89519.0,0.111707]
[1731883062895,0.02770104,89520.0,89501.0,0.15190408]
[1731883062896,0.223416,89519.0,89510.0,0.187818]
[1731883063113,0.111711,89517.0,89510.0,0.0761]
[1731883063306,0.06482479,89516.0,89512.0,0.111716]
[1731883063548,0.06482479,89515.0,89513.0,0.111714]
[1731883063708,0.03136779,89514.0,89513.0,0.111715]
[1731883063929,0.03807912,89514.0,89513.0,0.111715]
[1731883064096,0.07153612,89514.0,89513.0,0.111715]
[1731883064472,0.03807912,89514.0,89513.0,0.111715]
[1731883065098,0.03136779,89514.0,89513.0,0.111715]
[1731883065301,0.03807912,89514.0,89513.0,0.111715]
[1731883066095,0.03436779,89514.0,89513.0,0.111715]
[1731883066304,0.06782479,89514.0,89510.0,0.0761]
[1731883066548,0.06482479,89513.0,89504.0,0.005]
[1731883066769,0.111721,89509.0,89504.0,0.005]
[1731883066966,0.27360705,89512.0,89504.0,0.005]
[1731883066967,0.03136779,89508.0,89504.0,0.005]
[1731883067156,0.06482479,89507.0,89504.0,0.005]
[1731883067358,0.11839816,89508.0,89504.0,0.005]
[1731883067359,0.06482479,89506.0,89504.0,0.005]
[1731883067524,0.03136779,89505.0,89504.0,0.116726]
[1731883068121,0.07152881,89505.0,89504.0,0.116726]
[1731883068674,0.03810467,89505.0,89504.0,0.111726]
[1731883068954,0.06107446,89505.0,89503.0,0.005]
[1731883069193,0.05433758,89504.0,89503.0,0.005]
[1731883069403,0.06478126,89504.0,89503.0,0.005]
[1731883069610,0.07137459,89504.0,89503.0,0.005]
[1731883070404,0.18310059,89504.0,89503.0,0.005]
[1731883070645,0.07137459,89504.0,89503.0,0.005]
[1731883070869,0.19310259,89504.0,89503.0,0.005]
[1731883071076,0.19310159,89504.0,89503.0,0.005]
[1731883071279,0.08137459,89504.0,89496.0,0.0774]
[1731883071480,0.01659333,89504.0,89503.0,0.005]
[1731883071685,0.1930567,89504.0,89503.0,0.005]
[1731883071888,0.0813307,89504.0,89503.0,0.005]
[1731883072092,0.1970567,89504.0,89503.0,0.005]
[1731883072315,0.15319482,89504.0,89503.0,0.005]
[1731883072543,0.15319482,89504.0,89496.0,0.0774]
[1731883072544,0.111729,89502.0,89501.0,0.005]
[1731883072768,0.111729,89502.0,89497.0,0.111735]
[1731883072769,0.85571644,89504.0,89503.0,0.005]
[1731883073021,0.85903576,89504.0,89503.0,0.005]
[1731883074865,0.85503576,89504.0,89503.0,0.005]
[1731883075302,0.111729,89502.0,89501.0,0.005]
[1731883075521,0.03130876,89502.0,89501.0,0.005]
[1731883075788,0.03130876,89502.0,89494.0,0.005]
[1731883075789,0.123727,89504.0,89503.0,0.005]
[1731883076021,0.123727,89504.0,89498.0,0.111733]
[1731883076022,0.13816081,89504.0,89502.0,0.005]
[1731883076236,0.01443381,89504.0,89502.0,0.005]
[1731883076457,0.01043381,89503.0,89502.0,0.005]
[1731883076675,0.12216181,89503.0,89502.0,0.005]
[1731883077140,0.01043381,89503.0,89502.0,0.005]
[1731883077390,0.12216181,89503.0,89502.0,0.005]
[1731883078082,0.01043381,89503.0,89502.0,0.005]
[1731883078312,0.01043381,89503.0,89496.0,0.223473]
[1731883078559,0.7,89503.0,89502.0,0.005]
[1731883078776,0.71043404,89503.0,89502.0,0.005]
[1731883078995,0.01043404,89503.0,89502.0,0.005]
[1731883079205,0.02043404,89503.0,89502.0,0.005]
[1731883079435,0.03009347,89503.0,89502.0,0.005]
[1731883080134,0.02709347,89503.0,89502.0,0.005]
[1731883080346,0.14282147,89503.0,89502.0,0.005]
[1731883080569,0.73109347,89503.0,89502.0,0.005]
[1731883081223,0.72109347,89503.0,89502.0,0.005]
[1731883081475,0.83282147,89503.0,89502.0,0.005]
[1731883081699,0.84482147,89503.0,89502.0,0.005]
[1731883081947,0.73309347,89503.0,89502.0,0.005]
[1731883082394,0.82882147,89503.0,89502.0,0.005]
[1731883082600,0.74609347,89503.0,89502.0,0.005]
[1731883082883,0.85782147,89503.0,89502.0,0.005]
[1731883083562,0.74609347,89503.0,89502.0,0.005]
[1731883084270,0.85782147,89503.0,89502.0,0.005]
[1731883084497,1.08127947,89503.0,89502.0,0.005]
[1731883084742,0.98625591,89503.0,89502.0,0.005]
[1731883084978,1.09798391,89503.0,89502.0,0.005]
[1731883085882,0.223477,89495.0,89487.0,0.111746]
[1731883086134,0.11174,89493.0,89489.0,0.111745]
[1731883086384,0.01696257,89494.0,89489.0,0.111745]
[1731883086599,0.01696257,89494.0,89482.0,0.0814]
[1731883086600,0.111761,89476.0,89468.0,0.116771]
[1731883086826,0.12219504,89476.0,89467.0,0.0017062]
[1731883087082,0.12867254,89476.0,89469.0,0.11177]
[1731883087299,0.26073509,89476.0,89467.0,0.0017062]
[1731883087555,0.27959813,89476.0,89467.0,0.0017062]
[1731883087778,0.37778288,89476.0,89467.0,0.0017062]
[1731883088267,0.37779549,89476.0,89467.0,0.0017062]
[1731883088727,1.07778664,89476.0,89467.0,0.0017062]
[1731883089247,0.111771,89468.0,89467.0,0.0017062]
[1731883089472,0.12221373,89468.0,89467.0,0.0017062]
[1731883089977,0.23980481,89468.0,89467.0,0.0017062]
[1731883090236,1.00773517,89468.0,89467.0,0.0017062]
[1731883090447,1.04531943,89468.0,89467.0,0.0017062]
[1731883091105,1.05331943,89468.0,89467.0,0.0017062]
[1731883092027,1.05044353,89468.0,89467.0,0.0017062]
[1731883092254,1.07129704,89468.0,89467.0,0.0017062]
[1731883092488,1.04529704,89468.0,89467.0,0.0017062]
[1731883092733,1.11737331,89468.0,89467.0,0.0017062]
[1731883092981,1.13137331,89468.0,89467.0,0.0017062]
[1731883093445,1.1647199,89468.0,89467.0,0.0017062]
[1731883093980,1.16465446,89468.0,89467.0,0.0017062]
[1731883095119,1.08336871,89468.0,89467.0,0.0017062]
[1731883095383,1.15421448,89468.0,89467.0,0.0017062]
[1731883095600,1.05286197,89468.0,89467.0,0.0017062]
[1731883096050,1.16463297,89468.0,89467.0,0.0017062]
[1731883098121,1.07586197,89468.0,89467.0,0.0017062]
[1731883098350,1.18763297,89468.0,89467.0,0.0017062]
[1731883099430,1.15429378,89468.0,89467.0,0.0017062]
[1731883100923,1.08636342,89468.0,89467.0,0.0017062]
[1731883101154,0.84252987,89468.0,89467.0,0.1134792]
[1731883101365,0.84252987,89468.0,89467.0,0.1234792]
[1731883101366,0.08078401,89468.0,89467.0,0.1234792]
[1731883101626,0.05994702,89468.0,89467.0,0.1234792]
[1731883101832,0.05141849,89468.0,89467.0,0.1234792]
[1731883102270,0.03741849,89468.0,89467.0,0.1234792]
[1731883102495,0.01340981,89468.0,89467.0,0.1234792]
[1731883102954,0.02240981,89468.0,89467.0,0.1234792]
[1731883103376,0.02640981,89468.0,89467.0,0.1234792]
[1731883103804,0.02640981,89468.0,89467.0,0.2509792]
[1731883104012,0.016,89468.0,89467.0,0.36004175]
[1731883104233,0.016,89468.0,89467.0,0.35804175]
[1731883104680,0.016,89468.0,89467.0,0.45804175]
[1731883104902,0.012,89468.0,89467.0,0.50741246]
[1731883105134,0.004,89468.0,89467.0,0.50741246]
[1731883105387,0.005,89468.0,89467.0,0.51341246]
[1731883105566,0.005,89468.0,89467.0,0.51241246]
[1731883105567,0.001,89468.0,89467.0,0.51241246]
[1731883105837,0.002,89468.0,89467.0,0.51641246]
[1731883106043,0.002,89468.0,89467.0,0.52241246]
[1731883106044,0.004,89468.0,89467.0,0.52241246]
[1731883108884,0.004,89468.0,89467.0,0.54456918]
[1731883112454,0.004,89468.0,89467.0,0.53956918]
[1731883112682,0.004,89468.0,89467.0,0.51741246]
[1731883114797,0.004,89468.0,89467.0,0.51941246]
[1731883115213,0.004,89468.0,89467.0,0.51741246]
[1731883115428,0.004,89468.0,89467.0,0.51941246]
[1731883118544,0.004,89468.0,89467.0,0.51741246]
[1731883121155,0.004,89468.0,89467.0,0.36804175]
[1731883122503,0.004,89468.0,89467.0,0.46804175]
[1731883124249,0.004,89468.0,89467.0,0.57165149]
[1731883124900,0.004,89468.0,89467.0,0.57365149]
[1731883125539,0.004,89468.0,89467.0,0.57165149]
[1731883126006,0.004,89468.0,89467.0,0.46804175]
[1731883126223,0.004,89468.0,89467.0,0.47004175]
[1731883126440,0.004,89468.0,89467.0,0.53803356]
[1731883129904,0.004,89468.0,89467.0,0.49123356]
[1731883130740,0.004,89468.0,89467.0,0.42124175]
[1731883130962,0.004,89468.0,89467.0,0.1284792]
[1731883131159,0.03534793,89468.0,89467.0,0.1284792]
[1731883131367,0.03534793,89468.0,89467.0,0.1234792]
[1731883131583,0.08454203,89468.0,89467.0,0.1194792]
[1731883131795,0.10550488,89468.0,89467.0,0.0077062]
[1731883132014,0.2389467,89468.0,89467.0,0.0047062]
[1731883132244,0.3527177,89468.0,89467.0,0.0077062]
[1731883132461,0.34473009,89468.0,89467.0,0.0047062]
[1731883132672,0.34473009,89468.0,89467.0,0.0017062]
[1731883132673,0.34973009,89468.0,89467.0,0.0017062]
[1731883132879,0.36673009,89468.0,89467.0,0.0017062]
[1731883133081,0.35973009,89468.0,89467.0,0.0017062]
[1731883133285,0.37609459,89468.0,89467.0,0.0017062]
[1731883133503,0.44528484,89468.0,89467.0,0.0017062]
[1731883133794,0.39492034,89468.0,89467.0,0.0017062]
[1731883134770,0.38792034,89468.0,89467.0,0.0017062]
[1731883135027,0.50898289,89468.0,89467.0,0.0017062]
[1731883135247,0.54240112,89468.0,89467.0,0.0017062]
[1731883135501,0.53835465,89468.0,89467.0,0.0017062]
[1731883135712,0.53835465,89468.0,89451.0,0.0017062]
[1731883135713,0.11179,89453.0,89451.0,0.0017062]
[1731883135999,0.30978372,89452.0,89451.0,0.0017062]
[1731883136202,0.32876615,89452.0,89451.0,0.0017062]
[1731883138503,0.33576615,89452.0,89451.0,0.0017062]
[1731883138727,0.32658523,89452.0,89451.0,0.0017062]
[1731883138940,0.35368781,89452.0,89451.0,0.0017062]
[1731883139402,1.05368781,89452.0,89451.0,0.0017062]
[1731883141041,1.10014204,89452.0,89451.0,0.0017062]
[1731883141279,1.09996019,89452.0,89451.0,0.0017062]
[1731883141542,1.0832767,89452.0,89451.0,0.0017062]
[1731883141753,1.09994724,89452.0,89451.0,0.0017062]
[1731883142433,0.39994724,89452.0,89451.0,0.0017062]
[1731883142680,0.3832767,89452.0,89451.0,0.0017062]
[1731883143562,1.0832767,89452.0,89451.0,0.0017062]
[1731883143777,1.09994724,89452.0,89451.0,0.0017062]
[1731883144234,1.20900979,89452.0,89451.0,0.0017062]
[1731883144685,1.20898051,89452.0,89451.0,0.0017062]
[1731883144907,1.20198051,89452.0,89451.0,0.0017062]
[1731883145339,1.21098051,89452.0,89451.0,0.0017062]
[1731883145989,1.23798051,89452.0,89451.0,0.0017062]
[1731883147825,1.26098051,89452.0,89451.0,0.0017062]
[1731883148029,1.27137139,89452.0,89451.0,0.0017062]
[1731883148668,1.28535131,89452.0,89451.0,0.0017062]
[1731883150246,1.40639742,89452.0,89451.0,0.0017062]
[1731883150723,1.50639742,89452.0,89451.0,0.0017062]
[1731883150922,0.260994,89450.0,89449.0,0.00131899]
[1731883151197,1.28230167,89450.0,89449.0,0.00131899]
[1731883151416,1.29052919,89450.0,89449.0,0.00131899]
[1731883151636,1.26628403,89450.0,89449.0,0.00131899]
[1731883151859,1.27311036,89450.0,89449.0,0.00131899]
[1731883152076,1.30011036,89450.0,89449.0,0.00131899]
[1731883153222,1.32711036,89450.0,89449.0,0.00131899]
[1731883154137,1.30006268,89450.0,89449.0,0.00131899]
[1731883155751,1.41953431,89450.0,89449.0,0.00131899]
[1731883155995,1.43622105,89450.0,89449.0,0.00131899]
[1731883156252,1.3271585,89450.0,89449.0,0.00131899]
[1731883157623,0.1118,89445.0,89440.0,0.0017064]
[1731883157842,1.14757005,89445.0,89440.0,0.0017064]
[1731883158088,1.15578004,89445.0,89440.0,0.0017064]
[1731883158312,1.12017071,89445.0,89440.0,0.0017064]
[1731883159446,1.14717071,89445.0,89440.0,0.0017064]
[1731883159683,1.17428222,89445.0,89440.0,0.0017064]
[1731883159905,0.234805,89441.0,89440.0,0.0017064]
[1731883160129,1.11477459,89441.0,89440.0,0.0017064]
[1731883160345,1.13341309,89441.0,89440.0,0.0017064]
[1731883160559,1.14739672,89441.0,89440.0,0.0017064]
[1731883161039,1.14739672,89441.0,89419.0,0.223663]
[1731883161040,0.1284,89419.0,89412.0,0.0017066]
[1731883161262,1.0399535,89441.0,89388.0,0.0015764]
[1731883161263,0.134863,89395.0,89388.0,0.0015764]
[1731883161478,0.134863,89395.0,89365.0,0.0751]
[1731883161479,0.111886,89376.0,89365.0,0.0656577]
[1731883161728,0.25438375,89395.0,89371.0,0.16745276]
[1731883161729,0.02085501,89375.0,89371.0,0.16745276]
[1731883161945,0.04379552,89374.0,89366.0,0.005]
[1731883162172,0.03336802,89373.0,89366.0,0.005]
[1731883162404,0.00818993,89373.0,89365.0,0.0706577]
[1731883162654,0.08134307,89372.0,89365.0,0.0706577]
[1731883162863,0.03128579,89371.0,89370.0,0.005]
[1731883163119,0.03128579,89371.0,89370.0,0.121894]
[1731883163331,0.0292837,89371.0,89370.0,0.121894]
[1731883163563,0.018,89374.0,89373.0,0.11189]
[1731883163775,0.0388403,89374.0,89373.0,0.11189]
[1731883164042,0.018,89374.0,89373.0,0.11189]
[1731883164252,0.03884474,89374.0,89373.0,0.11189]
[1731883164503,0.03884474,89374.0,89371.0,0.223784]
[1731883164504,0.01042015,89377.0,89372.0,0.005]
[1731883164716,0.016,89373.0,89372.0,0.116891]
[1731883164947,0.16745276,89380.0,89372.0,0.01]
[1731883165174,0.03124602,89379.0,89375.0,0.005]
[1731883165397,0.03124602,89378.0,89375.0,0.111887]
[1731883165826,0.03124208,89377.0,89375.0,0.111887]
[1731883166141,0.16745276,89380.0,89372.0,0.005]
[1731883166142,0.7208228,89376.0,89372.0,0.005]
[1731883166374,0.03122958,89375.0,89372.0,0.005]
[1731883166599,0.0208228,89374.0,89372.0,0.005]
[1731883166814,0.0208228,89373.0,89372.0,0.005]
[1731883167243,0.7,89376.0,89372.0,0.005]
[1731883167454,0.02080635,89375.0,89372.0,0.005]
[1731883167681,0.7,89376.0,89372.0,0.005]
[1731883167682,0.02080635,89374.0,89372.0,0.005]
[1731883167918,0.7,89376.0,89372.0,0.116891]
[1731883168173,0.027,89373.0,89372.0,0.005]
[1731883168413,0.02080635,89373.0,89372.0,0.005]
[1731883169121,0.02894772,89373.0,89372.0,0.005]
[1731883169612,0.04294772,89373.0,89372.0,0.005]
[1731883169841,0.00678448,89373.0,89372.0,0.005]
[1731883170058,0.00678448,89373.0,89371.0,0.111892]
[1731883170275,0.111883,89379.0,89372.0,0.005]
[1731883170495,0.0103984,89378.0,89372.0,0.005]
[1731883170715,0.00679602,89378.0,89377.0,0.121885]
[1731883170941,0.01719403,89378.0,89377.0,0.199385]
[1731883171158,0.16745276,89384.0,89377.0,0.199385]
[1731883171159,0.16745276,89384.0,89383.0,0.116878]
[1731883171365,0.17785011,89384.0,89383.0,0.116878]
[1731883172016,0.16745276,89393.0,89383.0,0.116878]
[1731883172017,0.01039735,89392.0,89383.0,0.01]
[1731883172227,0.01039735,89391.0,89385.0,0.223748]
[1731883172448,0.16745276,89393.0,89388.0,0.11187]
[1731883172449,0.01039735,89390.0,89388.0,0.11187]
[1731883172668,0.01039735,89389.0,89386.0,0.223748]
[1731883172917,0.16745276,89393.0,89386.0,0.223748]
[1731883173119,0.01039978,89392.0,89384.0,0.228753]
[1731883173359,0.01039978,89392.0,89390.0,0.111868]
[1731883173569,0.01239978,89391.0,89390.0,0.111868]
[1731883174688,0.01039978,89391.0,89390.0,0.111868]
[1731883175559,0.01039978,89391.0,89390.0,0.113868]
[1731883175560,0.01139978,89391.0,89390.0,0.113868]
[1731883175783,0.015,89391.0,89390.0,0.114868]
[1731883175994,0.015,89391.0,89390.0,0.195768]
[1731883175995,0.02540713,89391.0,89390.0,0.195768]
[1731883177109,0.015,89391.0,89390.0,0.195768]
[1731883177329,0.02540713,89391.0,89390.0,0.195768]
[1731883177543,0.02440713,89391.0,89390.0,0.193768]
[1731883178046,0.02540713,89391.0,89390.0,0.242669]
[1731883178263,0.01040713,89391.0,89390.0,0.192769]
[1731883178506,0.02440713,89391.0,89390.0,0.195769]
[1731883178943,0.01040713,89391.0,89390.0,0.192769]
[1731883179159,0.02707732,89391.0,89390.0,0.192769]
[1731883179371,0.04007732,89391.0,89390.0,0.193769]
[1731883179820,0.0614336,89391.0,89390.0,0.194769]
[1731883180041,0.05678015,89391.0,89390.0,0.195769]
[1731883180264,0.05678015,89391.0,89390.0,0.205769]
[1731883180485,0.05678015,89391.0,89390.0,0.251569]
[1731883180920,0.012,89391.0,89390.0,0.251569]
[1731883181152,0.012,89391.0,89390.0,0.252569]
[1731883181153,0.001,89391.0,89390.0,0.252569]
[1731883181368,0.001,89391.0,89390.0,0.250569]
[1731883181614,0.014,89391.0,89390.0,0.25180612]
[1731883181834,0.015,89391.0,89390.0,0.251569]
[1731883182042,0.002,89391.0,89390.0,0.250569]
[1731883182289,0.013,89391.0,89390.0,0.251569]
[1731883182708,0.16745276,89397.0,89396.0,0.204161]
[1731883182936,0.02087192,89397.0,89396.0,0.204161]
[1731883183127,0.16745276,89402.0,89401.0,0.005]
[1731883183383,0.18833201,89402.0,89401.0,0.116855]
[1731883183843,0.02087925,89402.0,89401.0,0.116855]
[1731883184059,0.04432406,89416.0,89401.0,0.116855]
[1731883184060,0.16745276,89408.0,89401.0,0.005]
[1731883184283,0.0104384,89407.0,89401.0,0.228709]
[1731883184497,0.0104384,89407.0,89406.0,0.121849]
[1731883184498,0.00583671,89407.0,89406.0,0.121849]
[1731883184706,0.5354,89441.0,89418.0,0.111833]
[1731883184707,0.27927976,89424.0,89418.0,0.111833]
[1731883184967,0.01043836,89423.0,89419.0,0.111832]
[1731883185181,0.01043836,89422.0,89419.0,0.111832]
[1731883185414,0.09555175,89424.0,89419.0,0.111832]
[1731883185676,0.14203401,89424.0,89419.0,0.111832]
[1731883185879,0.14303401,89424.0,89419.0,0.111832]
[1731883186078,0.04748226,89424.0,89423.0,0.111828]
[1731883186747,0.04748226,89424.0,89421.0,0.111829]
[1731883186965,0.04748226,89424.0,89418.0,0.004]
[1731883186966,0.04748226,89424.0,89420.0,0.223663]
[1731883187173,0.04748226,89424.0,89423.0,0.111828]
[1731883187804,0.0451,89438.0,89419.0,0.002]
[1731883188021,0.111821,89429.0,89423.0,0.109927]
[1731883188240,0.10906255,89428.0,89423.0,0.109927]
[1731883188466,0.10906255,89428.0,89423.0,0.111927]
[1731883188467,0.11640372,89428.0,89423.0,0.111927]
[1731883189129,0.11640372,89428.0,89424.0,0.111826]
[1731883189349,0.223637,89431.0,89423.0,0.004]
[1731883189579,0.111821,89429.0,89424.0,0.111826]
[1731883190271,0.111821,89429.0,89423.0,0.004]
[1731883190478,0.21272173,89433.0,89423.0,0.002]
[1731883190707,0.11182,89430.0,89423.0,0.113827]
[1731883190922,0.11182,89430.0,89423.0,0.002]
[1731883191140,0.11182,89430.0,89424.0,0.111826]
[1731883191802,0.10906255,89432.0,89424.0,0.111826]
[1731883192027,0.11182,89430.0,89425.0,0.111825]
[1731883192247,0.21272173,89433.0,89426.0,0.111823]
[1731883192248,0.15708397,89433.0,89426.0,0.111823]
[1731883192450,0.04526897,89433.0,89424.0,0.004]
[1731883192662,0.10218297,89438.0,89427.0,0.111821]
[1731883192877,0.10218297,89438.0,89428.0,0.111821]
[1731883192878,0.111815,89434.0,89428.0,0.111821]
[1731883193310,0.111814,89434.0,89428.0,0.111821]
[1731883193747,0.111814,89434.0,89427.0,0.111822]
[1731883193960,0.1,89434.0,89427.0,0.111822]
[1731883194168,0.111815,89433.0,89427.0,0.111822]
[1731883194374,0.111815,89433.0,89428.0,0.111821]
[1731883194594,0.001,89432.0,89428.0,0.111821]
[1731883194806,0.001,89432.0,89428.0,0.002]
[1731883195280,0.10906255,89437.0,89424.0,0.113826]
[1731883195496,0.10906255,89437.0,89427.0,0.002]
[1731883195709,0.111821,89429.0,89427.0,0.002]
[1731883195918,0.111821,89429.0,89427.0,0.004]
[1731883196127,0.02086733,89428.0,89427.0,0.004]
[1731883196587,0.13268833,89428.0,89427.0,0.004]
[1731883196770,0.02086885,89428.0,89427.0,0.004]
[1731883197280,0.4933524,89428.0,89427.0,0.004]
[1731883197485,0.4933524,89428.0,89392.0,0.16745276]
[1731883197486,0.2034,89424.0,89392.0,0.16745276]
[1731883197715,0.1528978,89423.0,89392.0,0.16745276]
[1731883197932,0.10386256,89418.0,89393.0,0.223731]
[1731883198146,0.111852,89404.0,89389.0,0.005]
[1731883198365,0.01043656,89403.0,89389.0,0.005]
[1731883198588,0.10906255,89417.0,89389.0,0.005]
[1731883198589,0.01043656,89402.0,89389.0,0.005]
[1731883198801,0.01044076,89401.0,89395.0,0.111862]
[1731883199014,0.223713,89400.0,89392.0,0.002]
[1731883199226,0.111858,89399.0,89392.0,0.113866]
[1731883199438,0.11186,89398.0,89392.0,0.113866]
[1731883199647,0.111858,89399.0,89393.0,0.111865]
[1731883199829,0.223708,89402.0,89394.0,0.111863]
[1731883200079,0.111858,89399.0,89393.0,0.111865]
[1731883200294,0.111858,89399.0,89387.0,0.0784]
[1731883200295,0.16745276,89403.0,89385.0,0.223751]
[1731883200511,0.16745276,89403.0,89380.0,0.0828557]
[1731883200512,0.03341744,89402.0,89384.0,0.005]
[1731883200766,0.19345276,89403.0,89380.0,0.0878557]
[1731883200767,0.03341744,89401.0,89387.0,0.005]
[1731883200981,0.03341744,89401.0,89385.0,0.005]
[1731883200982,0.027,89399.0,89398.0,0.111859]
[1731883201196,0.2008702,89402.0,89391.0,0.223734]
[1731883201409,0.026,89399.0,89398.0,0.111859]
[1731883201842,0.111854,89402.0,89395.0,0.111862]
[1731883202060,0.223711,89401.0,89382.0,0.111878]
[1731883202285,0.223711,89401.0,89375.0,0.21425276]
[1731883202286,0.111877,89384.0,89380.0,0.0008557]
[1731883202500,0.03341744,89383.0,89380.0,0.0008557]
[1731883202734,0.03341744,89382.0,89380.0,0.0008557]
[1731883202984,0.03341744,89382.0,89355.0,0.047]
[1731883202985,0.005,89380.0,89355.0,0.047]
[1731883203213,0.005,89380.0,89358.0,0.16745276]
[1731883203214,0.111901,89365.0,89358.0,0.16745276]
[1731883203429,0.02171522,89373.0,89358.0,0.16745276]
[1731883203648,0.02171522,89373.0,89349.0,0.16745276]
[1731883203649,0.111897,89368.0,89353.0,0.005]
[1731883203873,0.14531544,89367.0,89357.0,0.111909]
[1731883204077,0.03341744,89366.0,89357.0,0.111909]
[1731883204374,0.2008702,89366.0,89358.0,0.111909]
[1731883204594,0.03741744,89365.0,89358.0,0.113909]
[1731883204807,0.03341744,89364.0,89358.0,0.113909]
[1731883204997,0.10906255,89374.0,89353.0,0.005]
[1731883204998,0.223788,89370.0,89354.0,0.223828]
[1731883205264,0.27934876,89368.0,89354.0,0.223828]
[1731883205476,0.004,89366.0,89357.0,0.113909]
[1731883205887,0.004,89366.0,89358.0,0.111908]
[1731883206138,0.111898,89367.0,89357.0,0.002]
[1731883206139,0.223803,89364.0,89357.0,0.002]
[1731883206370,0.10906255,89365.0,89357.0,0.002]
[1731883206371,0.111901,89365.0,89357.0,0.002]
[1731883206580,0.111901,89365.0,89358.0,0.002]
[1731883207017,0.111902,89364.0,89358.0,0.004]
[1731883207232,0.39124376,89369.0,89358.0,0.004]
[1731883207233,0.18841731,89369.0,89358.0,0.004]
[1731883207448,0.111901,89365.0,89355.0,0.116913]
[1731883207674,0.335689,89368.0,89357.0,0.003]
[1731883207892,0.111902,89364.0,89357.0,0.003]
[1731883208102,0.111902,89364.0,89356.0,0.11191]
[1731883208329,0.18841731,89369.0,89355.0,0.005]
[1731883208543,0.223796,89367.0,89358.0,0.004]
[1731883208773,0.02083761,89366.0,89358.0,0.004]
[1731883208983,0.111903,89363.0,89358.0,0.004]
[1731883209203,0.02083761,89362.0,89358.0,0.004]
[1731883209422,0.02083761,89361.0,89358.0,0.004]
[1731883209642,0.02083761,89360.0,89358.0,0.004]
[1731883209864,0.02083761,89359.0,89358.0,0.002]
[1731883210082,0.02083761,89359.0,89358.0,0.113909]
[1731883210349,0.02083761,89359.0,89358.0,0.111909]
[1731883210564,0.02083761,89359.0,89357.0,0.002]
[1731883210778,0.16745276,89366.0,89355.0,0.005]
[1731883210994,0.02082073,89365.0,89355.0,0.005]
[1731883211208,0.02082073,89364.0,89355.0,0.005]
[1731883211423,0.16745276,89366.0,89355.0,0.005]
[1731883211424,0.02082073,89363.0,89359.0,0.111907]
[1731883211655,0.02082073,89362.0,89358.0,0.111909]
[1731883211871,0.1119,89365.0,89357.0,0.002]
[1731883212092,0.16745276,89369.0,89357.0,0.002]
[1731883212303,0.1119,89366.0,89357.0,0.11391]
[1731883212514,0.111901,89365.0,89357.0,0.11391]
[1731883212724,0.16745276,89369.0,89357.0,0.002]
[1731883212931,0.1119,89366.0,89358.0,0.111909]
[1731883213355,0.135693,89368.0,89358.0,0.111909]
[1731883213569,0.16745276,89369.0,89358.0,0.111909]
[1731883213777,0.16745276,89369.0,89355.0,0.007]
[1731883213778,0.16745276,89369.0,89356.0,0.223823]
[1731883213993,0.16745276,89369.0,89355.0,0.007]
[1731883214211,0.16745276,89369.0,89357.0,0.223821]
[1731883214429,0.223756,89383.0,89362.0,0.005]
[1731883214430,0.02344936,89378.0,89362.0,0.005]
[1731883214643,0.02344936,89378.0,89363.0,0.111903]
[1731883214644,0.13533436,89378.0,89363.0,0.111903]
[1731883214860,0.111886,89377.0,89369.0,0.111895]
[1731883215264,0.223766,89379.0,89369.0,0.111895]
[1731883215523,0.111887,89376.0,89369.0,0.111895]
[1731883216205,0.14545557,89380.0,89369.0,0.111895]
[1731883216413,0.25733857,89380.0,89365.0,0.223801]
[1731883216700,0.1,89378.0,89372.0,0.11189]
[1731883216914,0.04545557,89380.0,89372.0,0.11189]
[1731883217136,0.001712,89382.0,89372.0,0.11189]
[1731883217361,0.04631653,89382.0,89372.0,0.11189]
[1731883217585,0.001712,89382.0,89372.0,0.11189]
[1731883217807,0.111882,89380.0,89372.0,0.11189]
[1731883218023,0.111883,89379.0,89372.0,0.11589]
[1731883218286,0.10906255,89385.0,89372.0,0.11589]
[1731883218524,0.111883,89379.0,89372.0,0.11589]
[1731883218766,0.335629,89384.0,89374.0,0.111889]
[1731883219004,0.11188,89381.0,89374.0,0.111889]
[1731883219270,0.11188,89381.0,89367.0,0.223796]